fUSD/lending_fUSD_20260407
["ID","MTS","AMOUNT","RATE_DAILY","PERIOD"]
[419943655,1775529058927,-411.826033,0.00013699,2]
[419943656,1775529058936,-411.826033,0.00013699,2]
[419943657,1775529058946,-411.826033,0.00013699,2]
[419943658,1775529058955,-411.826033,0.00013699,2]
[419943659,1775529058965,-411.826037,0.00013699,2]
[419943660,1775529058974,-151.402677,0.00013699,2]
[419943661,1775529058984,-158.084196,0.00013699,2]
[419943662,1775529058993,-151.0,0.00013699,2]
[419943663,1775529059003,-151.0,0.00013699,2]
[419943664,1775529059012,-151.0,0.00013699,2]
[419943665,1775529059021,-151.0,0.00013699,2]
[419943666,1775529059031,-151.0,0.00013699,2]
[419943667,1775529059040,-151.0,0.00013699,2]
[419943668,1775529059050,-151.0,0.00013699,2]
[419943669,1775529059060,-151.0,0.00013699,2]
[419943670,1775529059069,-151.0,0.00013699,2]
[419943671,1775529059079,-151.0,0.00013699,2]
[419943672,1775529059089,-151.0,0.00013699,2]
[419943673,1775529059099,-151.0,0.00013699,2]
[419943674,1775529059112,-151.0,0.00013699,2]
[419943675,1775529059121,-228.560202,0.00013699,2]
[419943676,1775529059131,-151.0,0.00013699,2]
[419943677,1775529059140,-151.0,0.00013699,2]
[419943678,1775529059150,-151.0,0.00013699,2]
[419943679,1775529059159,-151.0,0.00013699,2]
[419943680,1775529059168,-174.667824,0.00013699,2]
[419943681,1775529059177,-151.0,0.00013699,2]
[419943682,1775529059186,-151.0,0.00013699,2]
[419943683,1775529059196,-272.825688,0.00013699,2]
[419943684,1775529059205,-272.825688,0.00013699,2]
[419943685,1775529059214,-272.825688,0.00013699,2]
[419943686,1775529059223,-272.825688,0.00013699,2]
[419943687,1775529059232,-151.0,0.00013699,2]
[419943688,1775529059241,-272.825688,0.00013699,2]
[419943689,1775529059250,-151.0,0.00013699,2]
[419943690,1775529059259,-272.825688,0.00013699,2]
[419943691,1775529059269,-151.0,0.00013699,2]
[419943692,1775529059278,-156.730686,0.00013699,2]
[419943693,1775529059288,-151.0,0.00013699,2]
[419943694,1775529059297,-272.825688,0.00013699,2]
[419943695,1775529059307,-151.0,0.00013699,2]
[419943696,1775529059319,-151.0,0.00013699,2]
[419943697,1775529059329,-152.963854,0.00013699,2]
[419943698,1775529059339,-272.825688,0.00013699,2]
[419943699,1775529059349,-151.0,0.00013699,2]
[419943700,1775529059359,-151.0,0.00013699,2]
[419943701,1775529059368,-272.825688,0.00013699,2]
[419943702,1775529059377,-151.0,0.00013699,2]
[419943703,1775529059386,-151.0,0.00013699,2]
[419943704,1775529059395,-272.825688,0.00013699,2]
[419943705,1775529059404,-151.0,0.00013699,2]
[419943706,1775529059413,-151.0,0.00013699,2]
[419943707,1775529059422,-272.825688,0.00013699,2]
[419943708,1775529059431,-151.0,0.00013699,2]
[419943709,1775529059440,-153.886205,0.00013699,2]
[419943710,1775529059450,-272.825688,0.00013699,2]
[419943711,1775529059459,-156.556395,0.00013699,2]
[419943712,1775529059469,-272.825688,0.00013699,2]
[419943713,1775529059478,-272.825688,0.00013699,2]
[419943714,1775529059488,-272.825688,0.00013699,2]
[419943715,1775529059498,-272.825688,0.00013699,2]
[419943716,1775529059507,-211.260981,0.00013699,2]
[419943717,1775529059516,-272.825688,0.00013699,2]
[419943718,1775529059527,-151.0,0.00013699,2]
[419943719,1775529059538,-211.260981,0.00013699,2]
[419943720,1775529059547,-151.0,0.00013699,2]
[419943721,1775529059557,-272.825688,0.00013699,2]
[419943722,1775529059566,-211.260981,0.00013699,2]
[419943723,1775529059575,-205.76139,0.00013699,2]
[419943724,1775529059584,-272.825688,0.00013699,2]
[419943725,1775529059594,-211.260981,0.00013699,2]
[419943726,1775529059603,-272.825681,0.00013699,2]
[419943727,1775529059613,-211.260981,0.00013699,2]
[419943728,1775529059622,-211.260981,0.00013699,2]
[419943729,1775529059633,-211.260981,0.00013699,2]
[419943730,1775529059643,-211.260981,0.00013699,2]
[419943731,1775529059652,-151.0,0.00013699,2]
[419943732,1775529059661,-151.0,0.00013699,2]
[419943733,1775529059671,-151.0,0.00013699,2]
[419943734,1775529059681,-151.0,0.00013699,2]
[419943735,1775529059690,-211.260981,0.00013699,2]
[419943736,1775529059700,-211.260981,0.00013699,2]
[419943737,1775529059709,-151.0,0.00013699,2]
[419943738,1775529059719,-151.0,0.00013699,2]
[419943739,1775529059729,-151.0,0.00013699,2]
[419943740,1775529059739,-151.0,0.00013699,2]
[419943741,1775529059749,-151.0,0.00013699,2]
[419943742,1775529059760,-211.260981,0.00013699,2]
[419943743,1775529059771,-212.136441,0.00013699,2]
[419943744,1775529059781,-151.0,0.00013699,2]
[419943745,1775529059791,-151.0,0.00013699,2]
[419943746,1775529059800,-151.0,0.00013699,2]
[419943747,1775529059811,-211.260981,0.00013699,2]
[419943748,1775529059820,-151.0,0.00013699,2]
[419943749,1775529059832,-151.0,0.00013699,2]
[419943750,1775529059843,-151.0,0.00013699,2]
[419943751,1775529059853,-151.0,0.00013699,2]
[419943752,1775529059864,-211.260981,0.00013699,2]
[419943753,1775529059874,-151.0,0.00013699,2]
[419943754,1775529059883,-151.484672,0.00013699,2]
[419943755,1775529059893,-151.0,0.00013699,2]
[419943756,1775529059904,-151.0,0.00013699,2]
[419943757,1775529059914,-211.260981,0.00013699,2]
[419943758,1775529059925,-151.0,0.00013699,2]
[419943759,1775529059934,-151.0,0.00013699,2]
[419943760,1775529059944,-151.0,0.00013699,2]
[419943761,1775529059955,-151.0,0.00013699,2]
[419943762,1775529059965,-211.260981,0.00013699,2]
[419943763,1775529059975,-151.0,0.00013699,2]
[419943764,1775529059986,-152.937549,0.00013699,2]
[419943765,1775529059995,-151.0,0.00013699,2]
[419943766,1775529060004,-151.0,0.00013699,2]
[419943767,1775529060014,-211.260981,0.00013699,2]
[419943768,1775529060023,-151.0,0.00013699,2]
[419943769,1775529060033,-151.0,0.00013699,2]
[419943770,1775529060043,-151.0,0.00013699,2]
[419943771,1775529060052,-151.0,0.00013699,2]
[419943772,1775529060062,-151.0,0.00013699,2]
[419943773,1775529060071,-203.593663,0.00013699,2]
[419943774,1775529060080,-211.260981,0.00013699,2]
[419943775,1775529060090,-151.0,0.00013699,2]
[419943776,1775529060099,-151.0,0.00013699,2]
[419943777,1775529060110,-151.0,0.00013699,2]
[419943778,1775529060130,-211.260981,0.00013699,2]
[419943779,1775529060144,-151.0,0.00013699,2]
[419943780,1775529060159,-152.027025,0.00013699,2]
[419943781,1775529060175,-151.0,0.00013699,2]
[419943782,1775529060190,-151.0,0.00013699,2]
[419943783,1775529060207,-202.180808,0.00013699,2]
[419943784,1775529060223,-211.260981,0.00013699,2]
[419943785,1775529060238,-151.0,0.00013699,2]
[419943786,1775529060253,-151.0,0.00013699,2]
[419943787,1775529060267,-211.260974,0.00013699,2]
[419943788,1775529060278,-359.743394,0.00013699,2]
[419943789,1775529060292,-151.0,0.00013699,2]
[419943790,1775529060307,-151.0,0.00013699,2]
[419943791,1775529060322,-359.743394,0.00013699,2]
[419943792,1775529060337,-151.0,0.00013699,2]
[419943793,1775529060353,-151.0,0.00013699,2]
[419943794,1775529060366,-359.743394,0.00013699,2]
[419943795,1775529060376,-151.0,0.00013699,2]
[419943796,1775529060392,-151.0,0.00013699,2]
[419943797,1775529060405,-359.743394,0.00013699,2]
[419943798,1775529060420,-151.0,0.00013699,2]
[419943799,1775529060435,-249.886147,0.00013699,2]
[419943800,1775529060451,-151.0,0.00013699,2]
[419943801,1775529060464,-359.743394,0.00013699,2]
[419943802,1775529060475,-151.0,0.00013699,2]
[419943803,1775529060489,-151.0,0.00013699,2]
[419943804,1775529060503,-151.0,0.00013699,2]
[419943805,1775529060515,-151.0,0.00013699,2]
[419943806,1775529060528,-151.0,0.00013699,2]
[419943807,1775529060542,-359.743394,0.00013699,2]
[419943808,1775529060555,-213.857803,0.00013699,2]
[419943809,1775529060569,-151.0,0.00013699,2]
[419943810,1775529060582,-151.0,0.00013699,2]
[419943811,1775529060595,-151.0,0.00013699,2]
[419943812,1775529060609,-359.743394,0.00013699,2]
[419943813,1775529060622,-151.0,0.00013699,2]
[419943814,1775529060634,-151.0,0.00013699,2]
[419943815,1775529060648,-151.0,0.00013699,2]
[419943816,1775529060661,-151.0,0.00013699,2]
[419943817,1775529060674,-151.0,0.00013699,2]
[419943818,1775529060686,-359.743394,0.00013699,2]
[419943819,1775529060699,-199.662564,0.00013699,2]
[419943820,1775529060712,-151.0,0.00013699,2]
[419943821,1775529060726,-359.743394,0.00013699,2]
[419943822,1775529060742,-151.0,0.00013699,2]
[419943823,1775529060757,-233.905463,0.00013699,2]
[419943824,1775529060770,-359.743394,0.00013699,2]
[419943825,1775529060784,-151.0,0.00013699,2]
[419943826,1775529060799,-359.743394,0.00013699,2]
[419943827,1775529060813,-267.71378,0.00013699,2]
[419943828,1775529060827,-359.743394,0.00013699,2]
[419943829,1775529060844,-500.0,0.00013699,2]
[419943830,1775529060859,-160.07,0.00013699,2]
[419943831,1775529060873,-1098.06,0.00013699,2]
[419943832,1775529060886,-1252.0,0.00013737,2]
[419943833,1775529060900,-1152.0,0.00013738,2]
[419943834,1775529060914,-823.0,0.00013738,2]
[419943835,1775529060941,-150.0,0.00013759,2]
[419943836,1775529060955,-150.0,0.00013759,2]
[419943837,1775529060968,-150.0,0.00013759,2]
[419943838,1775529060982,-150.0,0.00013759,2]
[419943839,1775529060996,-150.0,0.00013759,2]
[419943840,1775529061009,-150.0,0.00013759,2]
[419943841,1775529061023,-150.0,0.00013759,2]
[419943842,1775529061037,-150.0,0.00013759,2]
[419943843,1775529061050,-150.0,0.00013759,2]
[419943844,1775529061063,-150.0,0.00013759,2]
[419943845,1775529061076,-150.0,0.00013759,2]
[419943846,1775529061089,-150.0,0.00013759,2]
[419943847,1775529061102,-150.0,0.0001379,2]
[419943848,1775529061114,-557.10851207,0.0001379,2]
[419943849,1775529061127,-500.0,0.0001379,2]
[419943850,1775529061140,-348.586408,0.00013791,2]
[419943851,1775529061153,-500.0,0.000138,2]
[419943852,1775529061166,-500.30799903,0.000138,2]
[419943853,1775529061181,-500.0,0.000138,2]
[419943854,1775529061194,-500.0,0.000138,2]
[419943855,1775529061208,-286.56433231,0.000138,2]
[419943856,1775529061221,-500.0,0.000138,2]
[419943857,1775529061234,-500.42792231,0.000138,2]
[419943858,1775529061247,-500.0,0.000138,2]
[419943859,1775529061260,-337.90453598,0.000138,2]
[419943860,1775529061272,-150.0,0.00013805,2]
[419943861,1775529061286,-150.0,0.0001381,2]
[419943862,1775529061299,-500.66821208,0.0001381,2]
[419943863,1775529061312,-500.0,0.0001381,2]
[419943864,1775529061324,-150.0,0.00013812,2]
[419943865,1775529061338,-150.0,0.00013814,2]
[419943866,1775529061351,-152.0,0.00013817,4]
[419943867,1775529061363,-150.0,0.00013818,2]
[419943868,1775529061376,-150.0,0.00013821,2]
[419943869,1775529061389,-502.54510633,0.00013824,2]
[419943870,1775529061403,-500.0,0.00013825,2]
[419943871,1775529061416,-500.0,0.00013825,2]
[419943872,1775529061429,-500.0,0.00013825,2]
[419943873,1775529061447,-500.0,0.00013825,2]
[419943874,1775529061473,-500.93020088,0.00013825,2]
[419943875,1775529061492,-500.43383469,0.00013825,2]
[419943876,1775529061510,-502.96988739,0.00013825,2]
[419943877,1775529061526,-500.0,0.00013825,2]
[419943878,1775529061542,-501.62175176,0.00013825,2]
[419943879,1775529061559,-500.88623589,0.00013825,2]
[419943880,1775529061575,-500.0,0.00013825,2]
[419943881,1775529061590,-500.88708388,0.00013825,2]
[419943882,1775529061605,-430.82314799,0.00013825,2]
[419943883,1775529061620,-500.0,0.00013825,2]
[419943884,1775529061635,-502.01782256,0.00013825,2]
[419943885,1775529061651,-500.0,0.00013825,2]
[419943886,1775529061666,-500.29713712,0.00013832,2]
[419943887,1775529061680,-166.66,0.00013836,2]
[419943888,1775529061695,-500.0,0.00013839,2]
[419943889,1775529061710,-500.0,0.00013839,2]
[419943890,1775529061726,-159.84173656,0.00013839,2]
[419943891,1775529061742,-500.0,0.00013839,2]
[419943892,1775529061756,-500.0,0.00013847,2]
[419943893,1775529061770,-150.0,0.00013852,2]
[419943894,1775529061784,-150.0,0.00013853,2]
[419943895,1775529061798,-150.0,0.00013861,2]
[419943896,1775529061812,-150.0,0.00013864,2]
[419943897,1775529061826,-150.0,0.00013868,2]
[419943898,1775529061839,-150.0,0.00013868,2]
[419943899,1775529061853,-150.0,0.00013877,2]
[419943900,1775529061867,-150.0,0.00013877,2]
[419943901,1775529061880,-200.0,0.00013883,2]
[419943902,1775529061894,-1536.04360649,0.00013883,2]
[419943903,1775529061906,-194.72792766,0.00013883,2]
[419943904,1775529061920,-829.12830338,0.00013883,2]
[419943905,1775529061934,-150.0,0.00013884,2]
[419943906,1775529061947,-150.0,0.00013898,2]
[419943907,1775529061960,-200.24528864,0.000139,2]
[419943908,1775529061973,-502.12511013,0.00013905,2]
[419943909,1775529061986,-150.0,0.00013912,2]
[419943910,1775529061999,-150.0,0.00013915,2]
[419943911,1775529062012,-150.0,0.00013917,2]
[419943912,1775529062025,-504.0,0.00013918,2]
[419943913,1775529062038,-150.0,0.00013923,2]
[419943914,1775529062051,-150.0,0.00013935,2]
[419943915,1775529062063,-150.0,0.00013944,2]
[419943916,1775529062076,-150.0,0.00013946,2]
[419943917,1775529062090,-150.0,0.0001395,2]
[419943918,1775529062102,-150.0,0.00013963,2]
[419943919,1775529062115,-150.0,0.0001397,2]
[419943920,1775529062129,-150.0,0.00013973,2]
[419943921,1775529062141,-150.0,0.00013973,2]
[419943922,1775529062154,-150.0,0.00013973,2]
[419943923,1775529062168,-150.0,0.00013973,2]
[419943924,1775529062183,-166.66,0.00013973,2]
[419943925,1775529062196,-802.98739957,0.00013974,2]
[419943926,1775529062210,-150.0,0.00013977,2]
[419943927,1775529062221,-150.0,0.00013977,2]
[419943928,1775529062242,-150.0,0.00013977,2]
[419943929,1775529062260,-150.0,0.00013991,2]
[419943930,1775529062277,-150.0,0.00013994,2]
[419943931,1775529062295,-150.0,0.00013994,2]
[419943932,1775529062311,-200.404802,0.00014,2]
[419943933,1775529062329,-150.0,0.00014008,2]
[419943934,1775529062344,-150.0,0.00014014,2]
[419943935,1775529062360,-150.0,0.00014022,2]
[419943936,1775529062375,-150.0,0.00014032,2]
[419943937,1775529062390,-150.0,0.00014037,2]
[419943938,1775529062405,-150.0,0.0001404,2]
[419943939,1775529062421,-150.0,0.00014053,2]
[419943940,1775529062435,-150.0,0.00014065,2]
[419943941,1775529062450,-150.0,0.00014069,2]
[419943942,1775529062464,-150.0,0.00014069,2]
[419943943,1775529062481,-150.0,0.00014069,2]
[419943944,1775529062494,-150.0,0.00014069,2]
[419943945,1775529062509,-150.0,0.00014069,2]
[419943946,1775529062523,-150.0,0.00014069,2]
[419943947,1775529062537,-218.0,0.00014069,2]
[419943948,1775529062551,-150.0,0.00014071,2]
[419943949,1775529062564,-606.77105689,0.00014074,2]
[419943950,1775529062578,-150.0,0.00014075,2]
[419943951,1775529062591,-2400.0,0.00014082,2]
[419943952,1775529062604,-1000.0,0.00014082,2]
[419943953,1775529062617,-150.0,0.00014083,2]
[419943954,1775529062632,-150.0,0.00014086,2]
[419943955,1775529062646,-150.0,0.00014086,2]
[419943956,1775529062659,-18090.89060839,0.00014096,2]
[419943957,1775529062673,-500.0,0.00014096,2]
[419943958,1775529062688,-666.0,0.00014096,2]
[419943959,1775529062702,-669.82976826,0.00014096,2]
[419943960,1775529062714,-150.0,0.00014102,2]
[419943961,1775529062728,-150.0,0.00014102,2]
[419943962,1775529062741,-150.0,0.00014102,2]
[419943963,1775529062755,-182.0,0.00014102,2]
[419943964,1775529062768,-150.0,0.00014102,2]
[419943965,1775529062782,-166.66,0.0001411,2]
[419943966,1775529062797,-150.0,0.00014112,2]
[419943967,1775529062811,-150.0,0.00014112,2]
[419943968,1775529062825,-150.0,0.00014116,2]
[419943969,1775529062837,-155.26329613,0.00014121,2]
[419943970,1775529062851,-150.0,0.00014128,2]
[419943971,1775529062864,-150.0,0.0001413,2]
[419943972,1775529062877,-150.0,0.00014133,2]
[419943973,1775529062889,-150.0,0.00014141,2]
[419943974,1775529062902,-150.0,0.00014141,2]
[419943975,1775529062915,-150.0,0.00014164,2]
[419943976,1775529062927,-150.0,0.00014167,2]
[419943977,1775529062939,-150.0,0.0001417,2]
[419943978,1775529062951,-150.0,0.00014176,2]
[419943979,1775529062965,-150.0,0.00014181,2]
[419943980,1775529062979,-161.88,0.00014186,2]
[419943981,1775529062991,-150.0,0.00014196,2]
[419943982,1775529063005,-150.0,0.00014196,2]
[419943983,1775529063025,-150.0,0.00014196,2]
[419943984,1775529063040,-1600.0,0.00014198,2]
[419943985,1775529063054,-220.49,0.00014215,2]
[419943986,1775529063068,-150.0,0.00014218,2]
[419943987,1775529063083,-150.0,0.00014222,2]
[419943988,1775529063098,-150.0,0.00014227,2]
[419943989,1775529063111,-150.0,0.00014229,2]
[419943990,1775529063127,-150.0,0.00014229,2]
[419943991,1775529063141,-150.0,0.00014233,2]
[419943992,1775529063155,-166.66,0.00014247,2]
[419943993,1775529063170,-150.0,0.00014247,2]
[419943994,1775529063185,-150.0,0.00014247,2]
[419943995,1775529063199,-150.0,0.00014247,2]
[419943996,1775529063212,-150.0,0.0001425,2]
[419943997,1775529063226,-150.0,0.00014258,2]
[419943998,1775529063239,-150.0,0.00014268,2]
[419943999,1775529063252,-150.0,0.00014268,2]
[419944000,1775529063265,-150.0,0.00014268,2]
[419944001,1775529063279,-150.0,0.00014268,2]
[419944002,1775529063293,-273.03813537,0.00014273,2]
[419944003,1775529063307,-152.0,0.00014275,5]
[419944004,1775529063320,-150.0,0.00014286,2]
[419944005,1775529063334,-150.0,0.00014288,2]
[419944006,1775529063347,-226.26,0.00014289,2]
[419944007,1775529063361,-150.0,0.00014289,2]
[419944008,1775529063373,-150.0,0.00014305,2]
[419944009,1775529063386,-150.0,0.00014305,2]
[419944010,1775529063403,-274.306619,0.00014306,7]
[419944011,1775529063415,-150.0,0.00014315,2]
[419944012,1775529063428,-150.0,0.00014319,2]
[419944013,1775529063441,-150.0,0.0001432,2]
[419944014,1775529063454,-226.26,0.00014321,2]
[419944015,1775529063467,-150.0,0.00014332,2]
[419944016,1775529063480,-1000.0,0.00014338,2]
[419944017,1775529063493,-150.0,0.00014339,2]
[419944018,1775529063506,-150.0,0.00014347,2]
[419944019,1775529063519,-150.0,0.00014347,2]
[419944020,1775529063532,-500.72229193,0.00014348,2]
[419944021,1775529063545,-500.63697267,0.00014348,2]
[419944022,1775529063558,-500.0,0.00014348,2]
[419944023,1775529063571,-416.10355522,0.00014348,2]
[419944024,1775529063583,-150.0,0.00014352,2]
[419944025,1775529063596,-226.26,0.00014352,2]
[419944026,1775529063609,-5117.94552254,0.00014355,2]
[419944027,1775529063621,-1000.0,0.00014358,2]
[419944028,1775529063634,-150.0,0.00014359,2]
[419944029,1775529063647,-150.0,0.00014361,2]
[419944030,1775529063661,-150.0,0.0001437,2]
[419944031,1775529063673,-1000.0,0.00014372,2]
[419944032,1775529063685,-814.26887436,0.00014372,2]
[419944033,1775529063698,-1038.78941312,0.00014372,2]
[419944034,1775529063710,-1002.88471784,0.00014372,2]
[419944035,1775529063722,-506.45995198,0.00014372,2]
[419944036,1775529063735,-1000.0,0.00014372,2]
[419944037,1775529063748,-1000.0,0.00014372,2]
[419944038,1775529063761,-1000.0,0.00014372,2]
[419944039,1775529063772,-150.0,0.00014383,2]
[419944040,1775529063785,-166.66,0.00014384,2]
[419944041,1775529063798,-689.55,0.00014384,2]
[419944042,1775529063811,-1000.0,0.00014387,2]
[419944043,1775529063824,-1000.0,0.00014387,2]
[419944044,1775529063836,-1000.0,0.00014387,2]
[419944045,1775529063848,-150.0,0.00014391,2]
[419944046,1775529063861,-1000.0,0.00014395,2]
[419944047,1775529063873,-2000.0,0.00014403,2]
[419944048,1775529063885,-150.0,0.00014406,2]
[419944049,1775529063898,-150.0,0.00014407,2]
[419944050,1775529063911,-150.0,0.00014414,2]
[419944051,1775529063923,-150.0,0.00014414,2]
[419944052,1775529063935,-150.0,0.00014414,2]
[419944053,1775529063948,-158.6548096,0.00014418,2]
[419944054,1775529063960,-150.0,0.00014421,2]
[419944055,1775529063972,-200.0,0.00014431,2]
[419944056,1775529063985,-1592.87721993,0.00014431,2]
[419944057,1775529063997,-201.93286099,0.00014431,2]
[419944058,1775529064009,-859.80605061,0.00014431,2]
[419944059,1775529064023,-150.0,0.00014444,2]
[419944060,1775529064036,-150.0,0.00014445,2]
[419944061,1775529064048,-687.69,0.00014446,2]
[419944062,1775529064060,-150.0,0.00014454,2]
[419944063,1775529064073,-150.0,0.00014464,2]
[419944064,1775529064085,-150.0,0.00014464,2]
[419944065,1775529064097,-150.0,0.00014469,2]
[419944066,1775529064110,-150.0,0.00014472,2]
[419944067,1775529064122,-150.0,0.00014476,2]
[419944068,1775529064135,-150.0,0.00014497,2]
[419944069,1775529064148,-150.0,0.000145,2]
[419944070,1775529064161,-9999.99,0.00014504,2]
[419944071,1775529064175,-2035.0,0.00014504,2]
[419944072,1775529064188,-150.0,0.00014508,2]
[419944073,1775529064202,-150.0,0.00014523,2]
[419944074,1775529064214,-150.0,0.00014523,2]
[419944075,1775529064229,-150.0,0.00014523,2]
[419944076,1775529064242,-150.0,0.00014523,2]
[419944077,1775529064254,-150.0,0.00014523,2]
[419944078,1775529064266,-150.0,0.00014523,2]
[419944079,1775529064279,-150.0,0.00014539,2]
[419944080,1775529064292,-150.0,0.00014546,2]
[419944081,1775529064304,-150.0,0.0001455,2]
[419944082,1775529064316,-150.0,0.0001457,2]
[419944083,1775529064329,-150.0,0.00014574,2]
[419944084,1775529064341,-150.0,0.00014578,2]
[419944085,1775529064354,-150.0,0.00014582,2]
[419944086,1775529064366,-150.0,0.00014582,2]
[419944087,1775529064378,-212.0,0.00014591,2]
[419944088,1775529064391,-150.0,0.00014593,2]
[419944089,1775529064403,-239.622383,0.00014597,7]
[419944090,1775529064415,-383.641176,0.00014597,7]
[419944091,1775529064427,-150.0,0.00014601,2]
[419944092,1775529064439,-150.0,0.00014602,2]
[419944093,1775529064451,-985.75,0.00014605,2]
[419944094,1775529064464,-150.0,0.00014625,2]
[419944095,1775529064476,-269.562823,0.00014626,2]
[419944096,1775529064487,-150.0,0.00014632,2]
[419944097,1775529064500,-150.0,0.00014632,2]
[419944098,1775529064512,-150.0,0.00014632,2]
[419944099,1775529064525,-150.0,0.00014639,2]
[419944100,1775529065587,-150.0,0.00014641,2]
[419944101,1775529065604,-1264.0,0.00014647,2]
[419944102,1775529065614,-150.17,0.00014647,2]
[419944103,1775529065624,-1224.807,0.00014647,2]
[419944104,1775529065633,-925.0,0.00014647,2]
[419944105,1775529065643,-6022.0,0.00014647,2]
[419944106,1775529065652,-3524.0,0.00014647,2]
[419944107,1775529065662,-150.0,0.00014655,2]
[419944108,1775529065672,-150.0,0.00014664,2]
[419944109,1775529065683,-150.0,0.00014676,2]
[419944110,1775529065695,-150.0,0.00014685,2]
[419944111,1775529065705,-150.0,0.00014687,2]
[419944112,1775529065715,-539.98064803,0.00014689,2]
[419944113,1775529065724,-2000.0,0.00014689,2]
[419944114,1775529065734,-150.0,0.00014695,2]
[419944115,1775529065744,-18090.89060839,0.00014697,2]
[419944116,1775529065754,-150.0,0.000147,2]
[419944117,1775529065764,-150.0,0.000147,2]
[419944118,1775529065773,-209.8256,0.000147,2]
[419944119,1775529065782,-150.0,0.00014704,5]
[419944120,1775529065792,-150.0,0.00014708,2]
[419944121,1775529065801,-2106.33519308,0.00014713,2]
[419944122,1775529065812,-150.0,0.00014714,2]
[419944123,1775529065821,-150.0,0.00014726,2]
[419944124,1775529065832,-150.0,0.00014727,2]
[419944125,1775529065841,-150.0,0.00014732,2]
[419944126,1775529065851,-152.0,0.00014732,6]
[419944127,1775529065861,-150.0,0.00014742,2]
[419944128,1775529065871,-150.0,0.00014742,2]
[419944129,1775529065880,-784.80891436,0.0001475,2]
[419944130,1775529065889,-212.0,0.0001475,2]
[419944131,1775529065899,-150.0,0.00014757,2]
[419944132,1775529065909,-150.0,0.00014758,2]
[419944133,1775529065920,-150.0,0.00014761,2]
[419944134,1775529065931,-212.0,0.00014767,2]
[419944135,1775529065941,-150.0,0.00014778,2]
[419944136,1775529065951,-150.0,0.00014778,2]
[419944137,1775529065961,-150.0,0.00014778,2]
[419944138,1775529065972,-150.0,0.00014778,2]
[419944139,1775529065984,-150.0,0.00014788,2]
[419944140,1775529065995,-250.0,0.00014795,2]
[419944141,1775529066004,-193.96292451,0.00014795,2]
[419944142,1775529066014,-150.0,0.00014796,2]
[419944143,1775529066024,-500.0,0.00014799,2]
[419944144,1775529066034,-670.84839751,0.00014799,2]
[419944145,1775529066044,-92477.4146238,0.000148,2]
[419944146,1775529066054,-150.0,0.00014813,2]
[419944147,1775529066064,-150.0,0.00014817,2]
[419944148,1775529066074,-150.0,0.00014817,2]
[419944149,1775529066084,-150.0,0.0001482,2]
[419944150,1775529066094,-150.0,0.00014824,2]
[419944151,1775529066104,-150.0,0.00014829,2]
[419944152,1775529066113,-504.0,0.00014836,3]
[419944153,1775529066123,-212.0,0.00014845,2]
[419944154,1775529066132,-150.0,0.00014851,2]